[Event "Titled Tuesday Blitz March 07 Early 2023"]
[White "Tymrakiewicz, Rafal"]
[Black "Gabdrakhmanov, Azat"]
[WhiteFideId "1108832"]
[BlackFideId "34189197"]
[WhiteElo "2151"]
[BlackElo "2266"]
[Result "1-0"]
[Round "05"]
[TimeControl "180+2"]
[Date "2023.03.07"]
[WhiteClock "0:00:06"]
[BlackClock "0:00:07"]

1. e4 {[%clk 0:02:53]}  c5 {[%clk 0:02:57]} 2. d4 {[%clk 0:02:53]}  cxd4 {[%clk 0:02:49]} 3. c3 {[%clk 0:02:53]}  dxc3 {[%clk 0:02:39]} 4. Nxc3 {[%clk 0:02:54]}  e6 {[%clk 0:02:33]} 5. Nf3 {[%clk 0:02:54]}  Nc6 {[%clk 0:02:24]} 6. Bc4 {[%clk 0:02:54]}  Be7 {[%clk 0:02:21]} 7. O-O {[%clk 0:02:54]}  d6 {[%clk 0:02:21]} 8. Qe2 {[%clk 0:02:54]}  Nf6 {[%clk 0:02:19]} 9. Rd1 {[%clk 0:02:54]}  e5 {[%clk 0:02:16]} 10. Bg5 {[%clk 0:02:54]}  O-O {[%clk 0:02:15]} 11. h3 {[%clk 0:02:14]}  a6 {[%clk 0:02:10]} 12. Rac1 {[%clk 0:02:10]}  Na5 {[%clk 0:01:59]} 13. Bxf6 {[%clk 0:02:01]}  Bxf6 {[%clk 0:01:57]} 14. Bd5 {[%clk 0:02:00]}  Bd7 {[%clk 0:01:53]} 15. b4 {[%clk 0:01:53]}  Nc6 {[%clk 0:01:51]} 16. a3 {[%clk 0:01:52]}  Rc8 {[%clk 0:01:44]} 17. Qd3 {[%clk 0:01:52]}  Qb6 {[%clk 0:01:39]} 18. Ba2 {[%clk 0:01:42]}  Nd4 {[%clk 0:00:58]} 19. Nxd4 {[%clk 0:01:40]}  Qxd4 {[%clk 0:00:47]} 20. Qxd4 {[%clk 0:01:39]}  exd4 {[%clk 0:00:48]} 21. Nd5 {[%clk 0:01:39]}  Bg5 {[%clk 0:00:46]} 22. f4 {[%clk 0:01:39]}  Bd8 {[%clk 0:00:46]} 23. Rxc8 {[%clk 0:01:29]}  Bxc8 {[%clk 0:00:47]} 24. Rxd4 {[%clk 0:01:28]}  Re8 {[%clk 0:00:46]} 25. Kf2 {[%clk 0:01:20]}  Kf8 {[%clk 0:00:42]} 26. Kf3 {[%clk 0:01:20]}  Bd7 {[%clk 0:00:36]} 27. g4 {[%clk 0:01:05]}  Bc6 {[%clk 0:00:30]} 28. Rd2 {[%clk 0:01:04]}  h6 {[%clk 0:00:24]} 29. Bb3 {[%clk 0:01:04]}  g6 {[%clk 0:00:20]} 30. Rc2 {[%clk 0:00:50]}  Bh4 {[%clk 0:00:18]} 31. Rc1 {[%clk 0:00:47]}  Kg7 {[%clk 0:00:18]} 32. a4 {[%clk 0:00:44]}  Bd8 {[%clk 0:00:12]} 33. Rc2 {[%clk 0:00:40]}  g5 {[%clk 0:00:11]} 34. f5 {[%clk 0:00:39]}  Bd7 {[%clk 0:00:09]} 35. Rc1 {[%clk 0:00:17]}  Bc6 {[%clk 0:00:08]} 36. Rc2 {[%clk 0:00:17]}  Bf6 {[%clk 0:00:08]} 37. b5 {[%clk 0:00:13]}  axb5 {[%clk 0:00:08]} 38. axb5 {[%clk 0:00:13]}  Bxb5 {[%clk 0:00:07]} 39. Nc7 {[%clk 0:00:13]}  Re5 {[%clk 0:00:05]} 40. Bd5 {[%clk 0:00:11]}  Bc6 {[%clk 0:00:05]} 41. Ra2 {[%clk 0:00:08]}  Bxd5 {[%clk 0:00:04]} 42. Nxd5 {[%clk 0:00:08]}  Bd8 {[%clk 0:00:05]} 43. Rb2 {[%clk 0:00:08]}  b6 {[%clk 0:00:04]} 44. Rc2 {[%clk 0:00:07]}  Re8 {[%clk 0:00:05]} 45. Rc8 {[%clk 0:00:07]}  Rf8 {[%clk 0:00:05]} 46. Rb8 {[%clk 0:00:06]}  Re8 {[%clk 0:00:04]} 47. Ra8 {[%clk 0:00:06]}  Kf8 {[%clk 0:00:04]} 48. f6 {[%clk 0:00:05]}  b5 {[%clk 0:00:03]} 49. Rb8 {[%clk 0:00:05]}  Bxf6 {[%clk 0:00:03]} 50. Rxe8+ {[%clk 0:00:04]}  Kxe8 {[%clk 0:00:04]} 51. Nxf6+ {[%clk 0:00:05]}  Ke7 {[%clk 0:00:04]} 52. Nd5+ {[%clk 0:00:05]}  Ke6 {[%clk 0:00:04]} 53. Nc7+ {[%clk 0:00:06]}  Ke5 {[%clk 0:00:05]} 54. Nxb5 {[%clk 0:00:06]}  d5 {[%clk 0:00:05]} 55. exd5 {[%clk 0:00:06]}  Kxd5 {[%clk 0:00:06]} 56. Nc3+ {[%clk 0:00:07]}  Ke5 {[%clk 0:00:06]} 57. Ne2 {[%clk 0:00:06]}  f5 {[%clk 0:00:06]} 58. Ng3 {[%clk 0:00:06]}  fxg4+ {[%clk 0:00:06]} 59. hxg4 {[%clk 0:00:06]}  Kd5 {[%clk 0:00:06]} 60. Nf5 {[%clk 0:00:06]}  Ke5 {[%clk 0:00:07]} 61. Nxh6 {[%clk 0:00:06]} 1-0


[Site "https://www.chess.com"]

[Event "Titled Tuesday Blitz March 07 Early 2023"]
[White "Golubev, Mikhail"]
[Black "Janaszak, Dawid"]
[WhiteFideId "14100983"]
[BlackFideId "1119206"]
[WhiteElo "2374"]
[BlackElo "2220"]
[Result "1-0"]
[Round "05"]
[TimeControl "180+2"]
[Date "2023.03.07"]
[WhiteClock "0:00:04"]
[BlackClock "0:00:29"]

1. e4 {[%clk 0:03:00]}  c5 {[%clk 0:02:59]} 2. Nf3 {[%clk 0:03:00]}  Nc6 {[%clk 0:03:00]} 3. Nc3 {[%clk 0:02:59]}  g6 {[%clk 0:03:00]} 4. d4 {[%clk 0:02:59]}  cxd4 {[%clk 0:03:01]} 5. Nxd4 {[%clk 0:02:58]}  Bg7 {[%clk 0:03:01]} 6. Be3 {[%clk 0:02:56]}  Nf6 {[%clk 0:03:01]} 7. Nxc6 {[%clk 0:02:56]}  bxc6 {[%clk 0:03:01]} 8. e5 {[%clk 0:02:56]}  Ng8 {[%clk 0:02:59]} 9. Bd4 {[%clk 0:02:55]}  Qa5 {[%clk 0:02:43]} 10. f4 {[%clk 0:02:51]}  Nh6 {[%clk 0:02:37]} 11. e6 {[%clk 0:02:44]}  f6 {[%clk 0:02:20]} 12. exd7+ {[%clk 0:02:40]}  Bxd7 {[%clk 0:02:21]} 13. Bc4 {[%clk 0:02:09]}  Qb4 {[%clk 0:02:09]} 14. Bb3 {[%clk 0:01:41]}  Nf5 {[%clk 0:02:04]} 15. Bf2 {[%clk 0:01:31]}  Rd8 {[%clk 0:01:53]} 16. O-O {[%clk 0:00:45]}  Be6 {[%clk 0:01:52]} 17. Qe2 {[%clk 0:00:44]}  Bxb3 {[%clk 0:01:49]} 18. axb3 {[%clk 0:00:44]}  O-O {[%clk 0:01:41]} 19. Rxa7 {[%clk 0:00:34]}  Qxf4 {[%clk 0:01:38]} 20. Bc5 {[%clk 0:00:16]}  Qb8 {[%clk 0:01:32]} 21. Qe6+ {[%clk 0:00:12]}  Kh8 {[%clk 0:01:31]} 22. Ra4 {[%clk 0:00:11]}  Rd2 {[%clk 0:01:15]} 23. Qe4 {[%clk 0:00:09]}  e5 {[%clk 0:01:09]} 24. Bxf8 {[%clk 0:00:08]}  Bxf8 {[%clk 0:01:07]} 25. Kh1 {[%clk 0:00:07]}  Bc5 {[%clk 0:01:00]} 26. Qxc6 {[%clk 0:00:06]}  Qb6 {[%clk 0:00:29]} 27. Ra8+ {[%clk 0:00:04]}  Kg7 {[%clk 0:00:29]} 28. Qxb6 {[%clk 0:00:04]}  Bxb6 {[%clk 0:00:30]} 29. Rb8 {[%clk 0:00:04]}  Bd4 {[%clk 0:00:30]} 30. Rb7+ {[%clk 0:00:04]}  Kh6 {[%clk 0:00:30]} 31. Ne4 {[%clk 0:00:04]}  Rxc2 {[%clk 0:00:29]} 32. Nxf6 {[%clk 0:00:04]}  Ne3 {[%clk 0:00:29]} 33. Rxh7+ {[%clk 0:00:02]}  Kg5 {[%clk 0:00:29]} 34. Ne4+ {[%clk 0:00:03]}  Kg4 {[%clk 0:00:29]} 35. h3# {[%clk 0:00:04]} 1-0


[Site "https://www.chess.com"]

[Event "Titled Tuesday Blitz March 07 Early 2023"]
[White "Sekar, B"]
[Black "Dodaro, Mattia"]
[WhiteFideId "5043743"]
[BlackFideId "28583400"]
[WhiteElo "2258"]
[BlackElo "2428"]
[Result "1-0"]
[Round "05"]
[TimeControl "180+2"]
[Date "2023.03.07"]
[WhiteClock "0:00:16"]
[BlackClock "0:00:19"]

1. e4 {[%clk 0:03:00]}  g6 {[%clk 0:02:56]} 2. d4 {[%clk 0:03:00]}  Bg7 {[%clk 0:02:54]} 3. Nc3 {[%clk 0:03:01]}  c6 {[%clk 0:02:54]} 4. Nf3 {[%clk 0:03:00]}  d5 {[%clk 0:02:55]} 5. h3 {[%clk 0:03:01]}  h5 {[%clk 0:02:52]} 6. Bd3 {[%clk 0:02:54]}  dxe4 {[%clk 0:02:52]} 7. Nxe4 {[%clk 0:02:53]}  Nf6 {[%clk 0:02:53]} 8. Nxf6+ {[%clk 0:02:51]}  Bxf6 {[%clk 0:02:53]} 9. O-O {[%clk 0:02:45]}  O-O {[%clk 0:02:52]} 10. c3 {[%clk 0:02:44]}  Be6 {[%clk 0:02:47]} 11. Re1 {[%clk 0:02:38]}  Qd6 {[%clk 0:02:35]} 12. Qe2 {[%clk 0:02:18]}  Bd5 {[%clk 0:02:20]} 13. Ne5 {[%clk 0:02:17]}  b5 {[%clk 0:02:14]} 14. a4 {[%clk 0:02:15]}  bxa4 {[%clk 0:01:52]} 15. c4 {[%clk 0:02:13]}  Be6 {[%clk 0:01:44]} 16. Nxg6 {[%clk 0:02:02]}  fxg6 {[%clk 0:01:45]} 17. Qxe6+ {[%clk 0:02:00]}  Qxe6 {[%clk 0:01:45]} 18. Rxe6 {[%clk 0:02:01]}  Kf7 {[%clk 0:01:42]} 19. Re4 {[%clk 0:01:55]}  Rd8 {[%clk 0:01:40]} 20. Be3 {[%clk 0:01:54]}  Nd7 {[%clk 0:01:35]} 21. Rxa4 {[%clk 0:01:53]}  Nc5 {[%clk 0:01:30]} 22. dxc5 {[%clk 0:01:49]}  Rxd3 {[%clk 0:01:31]} 23. Ra6 {[%clk 0:01:39]}  Rb8 {[%clk 0:01:19]} 24. Rxa7 {[%clk 0:01:34]}  Rxb2 {[%clk 0:01:16]} 25. g4 {[%clk 0:01:35]}  hxg4 {[%clk 0:01:13]} 26. hxg4 {[%clk 0:01:36]}  g5 {[%clk 0:01:06]} 27. Rc7 {[%clk 0:01:29]}  Rc2 {[%clk 0:01:05]} 28. Rxc6 {[%clk 0:01:00]}  Rdc3 {[%clk 0:01:05]} 29. Kg2 {[%clk 0:00:58]}  Rxc4 {[%clk 0:01:05]} 30. Rxc4 {[%clk 0:00:52]}  Rxc4 {[%clk 0:01:06]} 31. Kf3 {[%clk 0:00:51]}  Ke8 {[%clk 0:01:04]} 32. Rc7 {[%clk 0:00:37]}  Kd8 {[%clk 0:00:55]} 33. Ra7 {[%clk 0:00:32]}  Rc3 {[%clk 0:00:46]} 34. Ke4 {[%clk 0:00:28]}  Rc4+ {[%clk 0:00:45]} 35. Kd5 {[%clk 0:00:23]}  Rxg4 {[%clk 0:00:41]} 36. c6 {[%clk 0:00:23]}  Rb4 {[%clk 0:00:22]} 37. Bc5 {[%clk 0:00:18]}  Rb5 {[%clk 0:00:22]} 38. Kc4 {[%clk 0:00:16]}  Rb1 {[%clk 0:00:20]} 39. Bb4 {[%clk 0:00:13]}  Rc1+ {[%clk 0:00:16]} 40. Kb5 {[%clk 0:00:13]}  Be5 {[%clk 0:00:15]} 41. Ba5+ {[%clk 0:00:12]}  Kc8 {[%clk 0:00:15]} 42. Ra8+ {[%clk 0:00:12]}  Bb8 {[%clk 0:00:15]} 43. c7 {[%clk 0:00:12]}  Rxc7 {[%clk 0:00:16]} 44. Bxc7 {[%clk 0:00:12]}  Kxc7 {[%clk 0:00:17]} 45. Ra6 {[%clk 0:00:12]}  g4 {[%clk 0:00:17]} 46. Rg6 {[%clk 0:00:12]}  g3 {[%clk 0:00:17]} 47. fxg3 {[%clk 0:00:11]}  Kd7 {[%clk 0:00:18]} 48. Kc4 {[%clk 0:00:11]}  Bd6 {[%clk 0:00:19]} 49. Kd3 {[%clk 0:00:11]}  Ke8 {[%clk 0:00:19]} 50. Ke4 {[%clk 0:00:12]}  Kf7 {[%clk 0:00:20]} 51. Rg4 {[%clk 0:00:12]}  Kf6 {[%clk 0:00:21]} 52. Kf3 {[%clk 0:00:13]}  Kf5 {[%clk 0:00:21]} 53. Re4 {[%clk 0:00:14]}  Bc5 {[%clk 0:00:20]} 54. g4+ {[%clk 0:00:15]}  Kf6 {[%clk 0:00:20]} 55. Rf4+ {[%clk 0:00:15]}  Kg6 {[%clk 0:00:20]} 56. Rf5 {[%clk 0:00:16]}  Bd6 {[%clk 0:00:20]} 57. Rd5 {[%clk 0:00:16]}  Kf6 {[%clk 0:00:20]} 58. Ke4 {[%clk 0:00:16]}  Ke6 {[%clk 0:00:21]} 59. Rf5 {[%clk 0:00:16]}  Bb4 {[%clk 0:00:20]} 60. Rf8 {[%clk 0:00:16]}  Bc5 {[%clk 0:00:18]} 61. g5 {[%clk 0:00:16]}  Kd7 {[%clk 0:00:19]} 62. g6 {[%clk 0:00:16]}  e5 {[%clk 0:00:19]} 63. g7 {[%clk 0:00:16]} 1-0


[Site "https://www.chess.com"]

[Event "Titled Tuesday Blitz March 07 Early 2023"]
[White "Petrova, Irina"]
[Black "Saravana, Krishnan P."]
[WhiteFideId "14124122"]
[BlackFideId "5018382"]
[WhiteElo "2084"]
[BlackElo "2189"]
[Result "1-0"]
[Round "05"]
[TimeControl "180+2"]
[Date "2023.03.07"]
[WhiteClock "0:00:21"]
[BlackClock "0:00:07"]

1. e4 {[%clk 0:03:00]}  e5 {[%clk 0:02:27]} 2. Nf3 {[%clk 0:03:00]}  Nc6 {[%clk 0:02:26]} 3. Bb5 {[%clk 0:03:00]}  a6 {[%clk 0:02:25]} 4. Ba4 {[%clk 0:03:00]}  Nf6 {[%clk 0:02:21]} 5. Bxc6 {[%clk 0:03:00]}  dxc6 {[%clk 0:02:18]} 6. d3 {[%clk 0:03:01]}  Bd6 {[%clk 0:02:13]} 7. Nbd2 {[%clk 0:03:01]}  b5 {[%clk 0:02:12]} 8. O-O {[%clk 0:02:57]}  O-O {[%clk 0:02:11]} 9. b3 {[%clk 0:02:57]}  Qe7 {[%clk 0:02:10]} 10. Bb2 {[%clk 0:02:56]}  Nd7 {[%clk 0:02:10]} 11. Re1 {[%clk 0:02:54]}  Re8 {[%clk 0:02:10]} 12. Nf1 {[%clk 0:02:54]}  Nf8 {[%clk 0:02:09]} 13. Ng3 {[%clk 0:02:53]}  f6 {[%clk 0:02:01]} 14. d4 {[%clk 0:02:49]}  Ng6 {[%clk 0:01:42]} 15. dxe5 {[%clk 0:02:47]}  Nxe5 {[%clk 0:01:41]} 16. Nxe5 {[%clk 0:02:47]}  Bxe5 {[%clk 0:01:40]} 17. Bxe5 {[%clk 0:02:46]}  Qxe5 {[%clk 0:01:40]} 18. Qd3 {[%clk 0:02:27]}  Bg4 {[%clk 0:01:37]} 19. f3 {[%clk 0:02:24]}  Rad8 {[%clk 0:01:37]} 20. Qe3 {[%clk 0:02:23]}  Be6 {[%clk 0:01:37]} 21. Rad1 {[%clk 0:02:22]}  Qb2 {[%clk 0:01:28]} 22. Qc5 {[%clk 0:02:13]}  Bd7 {[%clk 0:01:20]} 23. a3 {[%clk 0:02:06]}  Qe5 {[%clk 0:01:03]} 24. Qxe5 {[%clk 0:02:04]}  fxe5 {[%clk 0:01:02]} 25. Rd2 {[%clk 0:02:01]}  Be6 {[%clk 0:01:01]} 26. Red1 {[%clk 0:02:01]}  Rxd2 {[%clk 0:01:01]} 27. Rxd2 {[%clk 0:02:01]}  Kf7 {[%clk 0:01:00]} 28. Kf2 {[%clk 0:02:02]}  a5 {[%clk 0:00:58]} 29. Ke3 {[%clk 0:01:59]}  c5 {[%clk 0:00:58]} 30. Ne2 {[%clk 0:01:45]}  Ke7 {[%clk 0:00:54]} 31. Nc3 {[%clk 0:01:42]}  c6 {[%clk 0:00:53]} 32. a4 {[%clk 0:01:39]}  b4 {[%clk 0:00:53]} 33. Nd1 {[%clk 0:01:20]}  c4 {[%clk 0:00:53]} 34. bxc4 {[%clk 0:01:21]}  Bxc4 {[%clk 0:00:52]} 35. Nb2 {[%clk 0:01:21]}  Ba6 {[%clk 0:00:27]} 36. Nd3 {[%clk 0:01:21]}  Bxd3 {[%clk 0:00:24]} 37. Rxd3 {[%clk 0:01:22]}  Rb8 {[%clk 0:00:23]} 38. Kd2 {[%clk 0:01:04]}  Ke6 {[%clk 0:00:22]} 39. Kc1 {[%clk 0:01:04]}  g5 {[%clk 0:00:20]} 40. Kb2 {[%clk 0:01:04]}  h5 {[%clk 0:00:21]} 41. Kb3 {[%clk 0:01:03]}  g4 {[%clk 0:00:20]} 42. Kc4 {[%clk 0:01:01]}  Rg8 {[%clk 0:00:18]} 43. g3 {[%clk 0:00:55]}  gxf3 {[%clk 0:00:17]} 44. Rxf3 {[%clk 0:00:56]}  Rg4 {[%clk 0:00:17]} 45. Kc5 {[%clk 0:00:49]}  Rxe4 {[%clk 0:00:15]} 46. Kxc6 {[%clk 0:00:50]}  Rc4+ {[%clk 0:00:14]} 47. Kb5 {[%clk 0:00:51]}  Rxc2 {[%clk 0:00:15]} 48. Kxa5 {[%clk 0:00:51]}  Rc3 {[%clk 0:00:14]} 49. Rf1 {[%clk 0:00:51]}  b3 {[%clk 0:00:14]} 50. Kb4 {[%clk 0:00:50]}  Rd3 {[%clk 0:00:14]} 51. Kc4 {[%clk 0:00:50]}  e4 {[%clk 0:00:14]} 52. a5 {[%clk 0:00:48]}  b2 {[%clk 0:00:12]} 53. Rb1 {[%clk 0:00:44]}  Ra3 {[%clk 0:00:07]} 54. Rxb2 {[%clk 0:00:44]}  Rxa5 {[%clk 0:00:07]} 55. Kd4 {[%clk 0:00:45]}  Ra4+ {[%clk 0:00:07]} 56. Ke3 {[%clk 0:00:44]}  Kf5 {[%clk 0:00:08]} 57. h3 {[%clk 0:00:40]}  Ra3+ {[%clk 0:00:07]} 58. Kf2 {[%clk 0:00:40]}  Ke5 {[%clk 0:00:07]} 59. Rb5+ {[%clk 0:00:38]}  Kd4 {[%clk 0:00:07]} 60. Rxh5 {[%clk 0:00:30]}  Ra2+ {[%clk 0:00:08]} 61. Ke1 {[%clk 0:00:27]}  Ke3 {[%clk 0:00:08]} 62. Rd5 {[%clk 0:00:23]}  Ra1+ {[%clk 0:00:06]} 63. Rd1 {[%clk 0:00:22]}  Rxd1+ {[%clk 0:00:06]} 64. Kxd1 {[%clk 0:00:23]}  Kf2 {[%clk 0:00:07]} 65. g4 {[%clk 0:00:21]}  e3 {[%clk 0:00:07]} 66. g5 {[%clk 0:00:21]} 1-0


[Site "https://www.chess.com"]

[Event "Titled Tuesday Blitz March 07 Early 2023"]
[White "Turzo, Attila"]
[Black "Slade, Theodore"]
[WhiteFideId "704954"]
[BlackFideId "426547"]
[WhiteElo "2536"]
[BlackElo "1964"]
[Result "1/2-1/2"]
[Round "05"]
[TimeControl "180+2"]
[Date "2023.03.07"]
[WhiteClock "0:00:06"]
[BlackClock "0:00:13"]

1. e4 {[%clk 0:02:57]}  e5 {[%clk 0:03:00]} 2. Nf3 {[%clk 0:02:54]}  Nc6 {[%clk 0:03:01]} 3. d4 {[%clk 0:02:55]}  exd4 {[%clk 0:03:01]} 4. Nxd4 {[%clk 0:02:56]}  Nf6 {[%clk 0:03:01]} 5. Nxc6 {[%clk 0:02:49]}  bxc6 {[%clk 0:03:02]} 6. e5 {[%clk 0:02:44]}  Qe7 {[%clk 0:03:02]} 7. Qe2 {[%clk 0:02:42]}  Nd5 {[%clk 0:03:03]} 8. c4 {[%clk 0:02:33]}  Ba6 {[%clk 0:03:02]} 9. g3 {[%clk 0:02:31]}  g6 {[%clk 0:03:01]} 10. b3 {[%clk 0:02:31]}  Bg7 {[%clk 0:03:00]} 11. Bb2 {[%clk 0:02:32]}  O-O-O {[%clk 0:02:57]} 12. Nd2 {[%clk 0:02:26]}  Rhe8 {[%clk 0:02:47]} 13. O-O-O {[%clk 0:02:20]}  Nb6 {[%clk 0:02:15]} 14. Bh3 {[%clk 0:02:06]}  Bxe5 {[%clk 0:02:07]} 15. Qxe5 {[%clk 0:01:55]}  Qxe5 {[%clk 0:02:08]} 16. Bxe5 {[%clk 0:01:56]}  Rxe5 {[%clk 0:02:09]} 17. Rhe1 {[%clk 0:01:43]}  Rde8 {[%clk 0:02:09]} 18. Rxe5 {[%clk 0:01:35]}  Rxe5 {[%clk 0:02:10]} 19. Bf1 {[%clk 0:01:35]}  c5 {[%clk 0:02:02]} 20. f4 {[%clk 0:01:33]}  Re3 {[%clk 0:02:01]} 21. Nb1 {[%clk 0:01:27]}  Bb7 {[%clk 0:01:58]} 22. Kd2 {[%clk 0:01:27]}  Re7 {[%clk 0:01:54]} 23. Nc3 {[%clk 0:01:25]}  d6 {[%clk 0:01:51]} 24. Bh3+ {[%clk 0:01:23]}  Kd8 {[%clk 0:01:50]} 25. f5 {[%clk 0:01:20]}  Nd7 {[%clk 0:01:44]} 26. fxg6 {[%clk 0:01:17]}  fxg6 {[%clk 0:01:40]} 27. Bxd7 {[%clk 0:01:13]}  Kxd7 {[%clk 0:01:40]} 28. Rf1 {[%clk 0:01:13]}  Bc6 {[%clk 0:01:37]} 29. Rf8 {[%clk 0:01:12]}  h5 {[%clk 0:01:16]} 30. Rg8 {[%clk 0:01:04]}  Re6 {[%clk 0:01:15]} 31. Rg7+ {[%clk 0:01:03]}  Kd8 {[%clk 0:01:07]} 32. h4 {[%clk 0:01:02]}  Rf6 {[%clk 0:01:06]} 33. Nd5 {[%clk 0:00:42]}  Bxd5 {[%clk 0:01:03]} 34. cxd5 {[%clk 0:00:43]}  Kc8 {[%clk 0:00:56]} 35. Ke3 {[%clk 0:00:41]}  Kb7 {[%clk 0:00:56]} 36. a3 {[%clk 0:00:34]}  Kb6 {[%clk 0:00:56]} 37. b4 {[%clk 0:00:34]}  cxb4 {[%clk 0:00:55]} 38. axb4 {[%clk 0:00:35]}  a6 {[%clk 0:00:55]} 39. Ke4 {[%clk 0:00:34]}  Kb5 {[%clk 0:00:48]} 40. Rxc7 {[%clk 0:00:31]}  Kxb4 {[%clk 0:00:49]} 41. Rb7+ {[%clk 0:00:29]}  Ka4 {[%clk 0:00:48]} 42. Re7 {[%clk 0:00:24]}  Kb5 {[%clk 0:00:39]} 43. Rb7+ {[%clk 0:00:20]}  Kc5 {[%clk 0:00:39]} 44. Rc7+ {[%clk 0:00:20]}  Kb6 {[%clk 0:00:39]} 45. Rc6+ {[%clk 0:00:15]}  Kb5 {[%clk 0:00:39]} 46. Rc1 {[%clk 0:00:13]}  a5 {[%clk 0:00:40]} 47. Rb1+ {[%clk 0:00:14]}  Ka6 {[%clk 0:00:34]} 48. Rb8 {[%clk 0:00:14]}  a4 {[%clk 0:00:33]} 49. Re8 {[%clk 0:00:13]}  Kb5 {[%clk 0:00:31]} 50. Rb8+ {[%clk 0:00:13]}  Kc5 {[%clk 0:00:25]} 51. Rc8+ {[%clk 0:00:13]}  Kb4 {[%clk 0:00:23]} 52. Rb8+ {[%clk 0:00:14]}  Kc3 {[%clk 0:00:23]} 53. Rc8+ {[%clk 0:00:11]}  Kb3 {[%clk 0:00:22]} 54. Rb8+ {[%clk 0:00:12]}  Ka2 {[%clk 0:00:22]} 55. Re8 {[%clk 0:00:09]}  a3 {[%clk 0:00:21]} 56. Re6 {[%clk 0:00:10]}  Rf1 {[%clk 0:00:20]} 57. Rxd6 {[%clk 0:00:09]}  Kb2 {[%clk 0:00:20]} 58. Rb6+ {[%clk 0:00:09]}  Ka1 {[%clk 0:00:19]} 59. d6 {[%clk 0:00:08]}  Rd1 {[%clk 0:00:19]} 60. Ke5 {[%clk 0:00:08]}  a2 {[%clk 0:00:19]} 61. Ke6 {[%clk 0:00:08]}  Rb1 {[%clk 0:00:19]} 62. Ra6 {[%clk 0:00:08]}  Re1+ {[%clk 0:00:17]} 63. Kf7 {[%clk 0:00:07]}  Kb2 {[%clk 0:00:16]} 64. d7 {[%clk 0:00:07]}  Rd1 {[%clk 0:00:16]} 65. Ke7 {[%clk 0:00:07]}  Re1+ {[%clk 0:00:13]} 66. Kf7 {[%clk 0:00:06]}  Rf1+ {[%clk 0:00:13]} 67. Ke8 {[%clk 0:00:06]}  Re1+ {[%clk 0:00:13]} 68. Kf7 {[%clk 0:00:06]} 1/2-1/2


[Site "https://www.chess.com"]

[Event "Titled Tuesday Blitz March 07 Early 2023"]
[White "Foerster-Yialamas, Lucas"]
[Black "Zarnicki, Pablo"]
[WhiteFideId "30901774"]
[BlackFideId "100137"]
[WhiteElo "2067"]
[BlackElo "2468"]
[Result "1-0"]
[Round "05"]
[TimeControl "180+2"]
[Date "2023.03.07"]
[WhiteClock "0:00:18"]
[BlackClock "0:00:35"]

1. e4 {[%clk 0:02:50]}  e5 {[%clk 0:02:59]} 2. Nf3 {[%clk 0:02:50]}  Nf6 {[%clk 0:02:54]} 3. Nxe5 {[%clk 0:02:49]}  d6 {[%clk 0:02:47]} 4. Nf3 {[%clk 0:02:50]}  Nxe4 {[%clk 0:02:48]} 5. Nc3 {[%clk 0:02:48]}  Nxc3 {[%clk 0:02:47]} 6. dxc3 {[%clk 0:02:49]}  Be7 {[%clk 0:02:47]} 7. Bd3 {[%clk 0:02:48]}  Nc6 {[%clk 0:02:48]} 8. h4 {[%clk 0:02:45]}  Bg4 {[%clk 0:02:45]} 9. Bf4 {[%clk 0:02:43]}  Qd7 {[%clk 0:02:38]} 10. b4 {[%clk 0:02:20]}  Bf6 {[%clk 0:02:28]} 11. O-O {[%clk 0:01:58]}  O-O {[%clk 0:02:19]} 12. b5 {[%clk 0:01:53]}  Ne7 {[%clk 0:01:56]} 13. Rb1 {[%clk 0:01:52]}  Ng6 {[%clk 0:01:51]} 14. Bg5 {[%clk 0:01:38]}  Nxh4 {[%clk 0:01:36]} 15. Bxf6 {[%clk 0:01:33]}  Bxf3 {[%clk 0:01:37]} 16. gxf3 {[%clk 0:01:29]}  gxf6 {[%clk 0:01:33]} 17. Kh2 {[%clk 0:01:26]}  Kh8 {[%clk 0:01:33]} 18. Rb4 {[%clk 0:01:21]}  Ng6 {[%clk 0:01:26]} 19. f4 {[%clk 0:01:21]}  f5 {[%clk 0:01:18]} 20. Qh5 {[%clk 0:01:20]}  Rg8 {[%clk 0:01:10]} 21. Bxf5 {[%clk 0:01:18]}  Qe7 {[%clk 0:01:10]} 22. Rg1 {[%clk 0:01:15]}  Rg7 {[%clk 0:01:08]} 23. Re4 {[%clk 0:01:12]}  Qf6 {[%clk 0:01:07]} 24. c4 {[%clk 0:01:00]}  Rag8 {[%clk 0:01:06]} 25. Rg3 {[%clk 0:00:54]}  c6 {[%clk 0:00:48]} 26. c5 {[%clk 0:00:41]}  d5 {[%clk 0:00:46]} 27. Rb4 {[%clk 0:00:41]}  Qe7 {[%clk 0:00:42]} 28. Rbb3 {[%clk 0:00:19]}  Qxc5 {[%clk 0:00:42]} 29. Qe2 {[%clk 0:00:18]}  Nxf4 {[%clk 0:00:38]} 30. Rxg7 {[%clk 0:00:18]}  Nxe2 {[%clk 0:00:35]} 31. Rxh7# {[%clk 0:00:18]} 1-0


[Site "https://www.chess.com"]

[Event "Titled Tuesday Blitz March 07 Early 2023"]
[White "Sztokbant, Bernardo Vainzoff"]
[Black "Markus, Robert"]
[WhiteFideId "2115956"]
[BlackFideId "921637"]
[WhiteElo "2222"]
[BlackElo "2623"]
[Result "1-0"]
[Round "05"]
[TimeControl "180+2"]
[Date "2023.03.07"]
[WhiteClock "0:00:55"]
[BlackClock "0:00:03"]

1. e4 {[%clk 0:03:00]}  c5 {[%clk 0:02:59]} 2. c3 {[%clk 0:03:00]}  d5 {[%clk 0:02:57]} 3. exd5 {[%clk 0:03:01]}  Qxd5 {[%clk 0:02:57]} 4. d4 {[%clk 0:03:01]}  cxd4 {[%clk 0:02:57]} 5. Nf3 {[%clk 0:03:02]}  Nc6 {[%clk 0:02:52]} 6. cxd4 {[%clk 0:03:02]}  Bg4 {[%clk 0:02:50]} 7. Nc3 {[%clk 0:03:02]}  Qh5 {[%clk 0:02:46]} 8. Be2 {[%clk 0:03:02]}  O-O-O {[%clk 0:02:41]} 9. Be3 {[%clk 0:02:56]}  Nf6 {[%clk 0:02:32]} 10. Rc1 {[%clk 0:02:55]}  e6 {[%clk 0:02:21]} 11. O-O {[%clk 0:02:55]}  Bd6 {[%clk 0:02:19]} 12. h3 {[%clk 0:02:54]}  Bxh3 {[%clk 0:02:14]} 13. gxh3 {[%clk 0:02:10]}  Qxh3 {[%clk 0:02:13]} 14. Nb5 {[%clk 0:02:06]}  Qg4+ {[%clk 0:01:57]} 15. Kh1 {[%clk 0:02:04]}  Qh3+ {[%clk 0:01:57]} 16. Kg1 {[%clk 0:02:03]}  Bb8 {[%clk 0:00:36]} 17. Re1 {[%clk 0:01:44]}  Ng4 {[%clk 0:00:35]} 18. Nxa7+ {[%clk 0:01:20]}  Bxa7 {[%clk 0:00:33]} 19. Bf1 {[%clk 0:01:20]}  Qh5 {[%clk 0:00:30]} 20. Qa4 {[%clk 0:01:20]}  Kb8 {[%clk 0:00:10]} 21. Bf4+ {[%clk 0:01:13]}  Ka8 {[%clk 0:00:10]} 22. Rxc6 {[%clk 0:01:12]}  Ne5 {[%clk 0:00:05]} 23. Nxe5 {[%clk 0:01:10]}  f6 {[%clk 0:00:05]} 24. Ra6 {[%clk 0:00:58]}  fxe5 {[%clk 0:00:02]} 25. Rxa7+ {[%clk 0:00:58]}  Kb8 {[%clk 0:00:03]} 26. Bxe5+ {[%clk 0:00:56]}  Kc8 {[%clk 0:00:03]} 27. Ra8# {[%clk 0:00:55]} 1-0


[Site "https://www.chess.com"]